Workbook

Sheet Inicial
B6: El VTUA es una medida que proyecta el monto total a pagar a lo largo de la vida de una operación activa, se calcula teniendo en cuenta tanto los abonos a capital cómo los costos por el uso del producto. Acorde a la norma se permite simular un cupo de 52,63 unidades de valor tributario (UVT) y otro cupo de 157,88 UVT.
B13: NOTA: Recuerda que las tasas de interés pueden variar cada mes, por lo que la vigencia de este simulador aplica para el mes en que lo estás descargando, si realizas nuevamente el calculo más adelante debes dirigirte a nuestro home y descargar el simulador actualizado.
B19: Tener presente: habilitar la ejecución de macros y no tener bloqueado el libro.

Sheet Parametros (hidden)
A1: UVT2023 | B1: 47065 | C1: CUPO | G1: Tarjetas Activas | I1: 0 | J1: Bines | K1: Cuota de Manejo | L1: Tasa Politica | M1: Cupo Min | N1: Cupo Max | O1: FORMULARIO | Q1: MV | S1: Mes | T1: Saldo Inicial | U1: Intereses | V1: Abono a K | W1: Cuota de Manejo | X1: Nuevo cupo consumido | Y1: Saldo Final | Z1: Flujo Mensual | AB1: Cupo | AC1: Tasa MV | AD1: Plazo a diferir | AE1: Cuota de manejo | AN1: Configuración regional
A2: Cupo | B2: 52.63 | C2: =B2*B1 -> 2477030.95 | G2: AMERICAN EXPRESS BLUE | I2: 1 | J2: AMERICAN EXPRESS BLUE | K2: 27990 | L2: 0.269989 | M2: 700000 | N2: 4900000 | O2: 2232143.56 | Q2: =NOMINAL(31.452%,12)/12 -> 0.02305095829 | S2: 0 | T2: - | U2: - | V2: - | W2: - | X2: - | Y2: =AB2 -> 2477031 | Z2: =+Y2 -> 2477031 | AB2: 2477031 | AC2: 0.0231 | AD2: 12 | AE2: 48490 | AN2: requerida | AO2: H240A!Idioma|H1F!dd/MM/yyyy|HE!.|HF!,|H1003!HH:mm:ss|H16!.|H17!,|H14!$|HC!;
A3: Cupo | B3: 157.88 | C3: =B3*B1 -> 7430622.2 | G3: AMERICAN EXPRESS BUSINESS ORO | I3: 2 | J3: AMERICAN EXPRESS BUSINESS ORO | K3: 28890 | L3: 0.31452 | M3: 100000 | N3: 1000000000 | O3: Ambos | S3: 1 | T3: =Y2 -> 2477031 | U3: =T3*$Q$2 -> 57097.93827 | V3: =+IF(S3=$AD$2,$AB$2,$AB$2/$AD$2) -> 206419.25 | W3: =+$AE$2 -> 48490 | X3: =+V3 -> 206419.25 | Y3: =+T3-V3+X3 -> 2477031 | Z3: =-U3-W3 -> -105587.9383 | AN3: origen | AO3: H240A!Idioma|H1F!d.MM.yyyy|HE!,|HF!.|H1003!HH:mm:ss|H16!,|H17!’|H14!kr|HC!;
G4: AMERICAN EXPRESS BUSINESS VERDE | I4: 3 | J4: AMERICAN EXPRESS BUSINESS VERDE | K4: 28890 | L4: 0.31452 | M4: 100000 | N4: 1000000000 | O4: Ambos | S4: 2 | T4: =Y3 -> 2477031 | U4: =T4*$Q$2 -> 57097.93827 | V4: =+IF(S4=$AD$2,$AB$2,$AB$2/$AD$2) -> 206419.25 | W4: 48490 | X4: =+V4 -> 206419.25 | Y4: =+T4-V4+X4 -> 2477031 | Z4: =-U4-W4 -> -105587.9383
G5: AMERICAN EXPRESS ORO | I5: 4 | J5: AMERICAN EXPRESS ORO | K5: 36950 | L5: 0.31452 | M5: 5000000 | N5: 50000000 | O5: Ambos | S5: 3 | T5: 2477031 | U5: 57097.93827 | V5: 206419.25 | W5: 48490 | X5: 206419.25 | Y5: 2477031 | Z5: -105587.9383 | AB5: InteresesTotales | AC5: CuotaTotal | AD5: TasaEA | AE5: VTUA | AF5: VTUA EA %
G6: AMERICAN EXPRESS VERDE | I6: 5 | J6: AMERICAN EXPRESS VERDE | K6: 33390 | L6: 0.31452 | M6: 3000000 | N6: 15000000 | O6: Ambos | S6: 4 | T6: 2477031 | U6: 57097.93827 | V6: 206419.25 | W6: 48490 | X6: 206419.25 | Y6: 2477031 | Z6: -105587.9383 | AB6: =+SUM(U3:U14) -> 685175.2593 | AC6: =+SUM(W3:W14) -> 581880 | AD6: =+EFFECT(AB6/AB2,12) -> 0.31452 | AE6: =+AB2+AB6+AC6 -> 3744086.259 | AF6: =+EFFECT((AB6+AC6)/AB2,12) -> 0.6502383472
G7: AMERICAN EXPRESS LIBRE | I7: 6 | J7: AMERICAN EXPRESS LIBRE | K7: 0 | L7: 0.31452 | M7: 2000000 | N7: 10000000 | O7: Ambos | S7: 5 | T7: 2477031 | U7: 57097.93827 | V7: 206419.25 | W7: 48490 | X7: 206419.25 | Y7: 2477031 | Z7: -105587.9383 | AB7: =+SUM(U3:U14)+U3 -> 742273.1975
G8: AMERICAN EXPRESS PLATINUM | I8: 7 | J8: AMERICAN EXPRESS PLATINUM | K8: 48490 | L8: 0.31452 | M8: 10000000 | N8: 300000000 | O8: Ambos | S8: 6 | T8: 2477031 | U8: 57097.93827 | V8: 206419.25 | W8: 48490 | X8: 206419.25 | Y8: 2477031 | Z8: -105587.9383
G9: AMERICAN EXPRESS PLATINUM METALICA | I9: 8 | J9: AMERICAN EXPRESS PLATINUM METALICA | K9: 109900 | L9: 0.31452 | M9: 10000000 | N9: 500000000 | O9: Ambos | S9: 7 | T9: 2477031 | U9: 57097.93827 | V9: 206419.25 | W9: 48490 | X9: 206419.25 | Y9: 2477031 | Z9: -105587.9383
G10: VISA CLASICA | I10: 9 | J10: VISA CLASICA | K10: 27990 | L10: 0.269989 | M10: 400000 | N10: 4900000 | O10: 2232143.56 | S10: 8 | T10: 2477031 | U10: 57097.93827 | V10: 206419.25 | W10: 48490 | X10: 206419.25 | Y10: 2477031 | Z10: -105587.9383
G11: VISA CORPORATIVA | I11: 10 | J11: VISA CORPORATIVA | K11: 28990 | L11: 0.31452 | M11: 100000 | N11: 1000000000 | O11: Ambos | S11: 9 | T11: 2477031 | U11: 57097.93827 | V11: 206419.25 | W11: 48490 | X11: 206419.25 | Y11: 2477031 | Z11: -105587.9383
G12: VISA INFINITE | I12: 11 | J12: VISA INFINITE | K12: 48490 | L12: 0.31452 | M12: 15000000 | N12: 300000000 | O12: Ambos | S12: 10 | T12: 2477031 | U12: 57097.93827 | V12: 206419.25 | W12: 48490 | X12: 206419.25 | Y12: 2477031 | Z12: -105587.9383
G13: VISA LIFEMILES MICROPYME | I13: 12 | J13: VISA LIFEMILES MICROPYME | K13: 27890 | L13: 0.31452 | M13: 100000 | N13: 1000000000 | O13: Ambos | S13: 11 | T13: 2477031 | U13: 57097.93827 | V13: 206419.25 | W13: 48490 | X13: 206419.25 | Y13: 2477031 | Z13: -105587.9383
G14: VISA LIFEMILES PERSONAS | I14: 13 | J14: VISA LIFEMILES PERSONAS | K14: 38890 | L14: 0.31452 | M14: 5000000 | N14: 50000000 | O14: Ambos | S14: 12 | T14: 2477031 | U14: 57097.93827 | V14: =+IF(S14=$AD$2,$AB$2,$AB$2/$AD$2) -> 2477031 | W14: 48490 | X14: 0 | Y14: =+T14-V14+X14 -> 0 | Z14: =-U14-W14-V14 -> -2582618.938
G15: VISA LIFEMILES PYME | I15: 14 | J15: VISA LIFEMILES PYME | K15: 29890 | L15: 0.31452 | M15: 500000 | N15: 850000000 | O15: Ambos | V15: =SUM(V3:V14) -> 4747642.75 | Y15: VTUA EA: | Z15: =+EFFECT(IRR(Z2:Z14)*12,12) -> 0.6502383472
G16: VISA ORO | I16: 15 | J16: VISA ORO | K16: 33390 | L16: 0.31452 | M16: 5000000 | N16: 50000000 | O16: Ambos | Y16: Chequeo | Z16: =+ROUND(AF6,4)=ROUND(Z15,4) -> TRUE
G17: VISA PLATINUM | I17: 16 | J17: VISA PLATINUM | K17: 36950 | L17: 0.31452 | M17: 10000000 | N17: 200000000 | O17: Ambos
G18: VISA PYME | I18: 17 | J18: VISA PYME | K18: 28890 | L18: 0.31452 | M18: 700000 | N18: 850000000 | O18: Ambos
G19: VISA SELECCIÓN COLOMBIA | I19: 18 | J19: VISA SELECCIÓN COLOMBIA | K19: 26490 | L19: 0.31452 | M19: 400000 | N19: 10000000 | O19: Ambos
G20: MASTERCARD AGRO | I20: 19 | J20: MASTERCARD AGRO | K20: 16990 | L20: 0.31452 | M20: 500000 | N20: 300000000 | O20: Ambos
G21: MASTERCARD BLACK | I21: 20 | J21: MASTERCARD BLACK | K21: 48490 | L21: 0.31452 | M21: 10000000 | N21: 300000000 | O21: Ambos
G22: MASTERCARD CLASICA | I22: 21 | J22: MASTERCARD CLASICA | K22: 27990 | L22: 0.269989 | M22: 400000 | N22: 4900000 | O22: 2232143.56
G23: MASTERCARD CORPORATIVA | I23: 22 | J23: MASTERCARD CORPORATIVA | K23: 28990 | L23: 0.31452 | M23: 100000 | N23: 1000000000 | O23: Ambos
G24: MASTERCARD E-CARD | I24: 23 | J24: MASTERCARD E-CARD | K24: 0 | L24: 0.31452 | M24: 70000 | N24: 10000000 | O24: Ambos
G25: MASTERCARD IDEAL | I25: 24 | J25: MASTERCARD IDEAL | K25: 16690 | L25: 0.269989 | M25: 200000 | N25: 12000000 | O25: Ambos
G26: MASTERCARD JOVEN | I26: 25 | J26: MASTERCARD JOVEN | K26: 15490 | L26: 0.269989 | M26: 200000 | N26: 5000000 | O26: 2232143.56
G27: MASTERCARD ORO | I27: 26 | J27: MASTERCARD ORO | K27: 33390 | L27: 0.31452 | M27: 5000000 | N27: 50000000 | O27: Ambos
G28: MASTERCARD PLATINUM | I28: 27 | J28: MASTERCARD PLATINUM | K28: 36950 | L28: 0.31452 | M28: 10000000 | N28: 200000000 | O28: Ambos
G29: MASTERCARD NEGOCIOS | I29: 28 | J29: MASTERCARD NEGOCIOS | K29: 28890 | L29: 0.31452 | M29: 500000 | N29: 850000000 | O29: Ambos
G30: MASTERCARD SUFI CLASICA | I30: 29 | J30: MASTERCARD SUFI CLASICA | K30: 34090 | L30: 0.269989 | M30: 400000 | N30: 50000000 | O30: Ambos
G31: MASTERCARD SUFI ORO | I31: 30 | J31: MASTERCARD SUFI ORO | K31: 34090 | L31: 0.31452 | M31: 400000 | N31: 50000000 | O31: Ambos
I32: 31 | J32: MASTERCARD ÚNICA VIRTUAL | K32: 9900 | L32: 0.31452 | M32: 500000 | N32: 10000000 | O32: Ambos
I33: 32 | J33: MASTERCARD ESSO CLASICA | K33: 30790 | L33: 0.269989 | M33: 400000 | N33: 4900000 | O33: 2232143.56
I34: 33 | J34: MASTERCARD ESSO ORO | K34: 35090 | L34: 0.31452 | M34: 5000000 | N34: 20000000 | O34: Ambos
